[Event "Titled Tuesday Blitz April 26 Early 2022"]
[White "Clawitter, Craig"]
[Black "Urbina Perez, Juan Antonio"]
[WhiteFideId "2023105"]
[BlackFideId "2217368"]
[WhiteElo "2237"]
[BlackElo "2192"]
[Result "1-0"]
[Round "06"]
[TimeControl "180+1"]
[Date "2022.04.26"]
[WhiteClock "0:00:10"]
[BlackClock "0:00:17"]

1. e4 {[%clk 0:03:00]}  c5 {[%clk 0:02:55]} 2. Nf3 {[%clk 0:03:01]}  d6 {[%clk 0:02:55]} 3. d4 {[%clk 0:03:01]}  cxd4 {[%clk 0:02:56]} 4. Nxd4 {[%clk 0:03:02]}  Nf6 {[%clk 0:02:56]} 5. Nc3 {[%clk 0:03:03]}  Nc6 {[%clk 0:02:56]} 6. Bc4 {[%clk 0:03:01]}  Qb6 {[%clk 0:02:53]} 7. Nb3 {[%clk 0:02:58]}  e6 {[%clk 0:02:52]} 8. Be3 {[%clk 0:02:52]}  Qc7 {[%clk 0:02:52]} 9. Qe2 {[%clk 0:02:52]}  a6 {[%clk 0:02:52]} 10. O-O-O {[%clk 0:02:48]}  Ne5 {[%clk 0:02:51]} 11. Bd3 {[%clk 0:02:46]}  Be7 {[%clk 0:02:48]} 12. Kb1 {[%clk 0:02:45]}  b5 {[%clk 0:02:47]} 13. f4 {[%clk 0:02:33]}  Nxd3 {[%clk 0:02:46]} 14. cxd3 {[%clk 0:02:32]}  b4 {[%clk 0:02:45]} 15. Na4 {[%clk 0:02:20]}  Bd7 {[%clk 0:02:45]} 16. Rc1 {[%clk 0:02:00]}  Qd8 {[%clk 0:02:40]} 17. Bb6 {[%clk 0:01:06]}  Qb8 {[%clk 0:02:34]} 18. Bc7 {[%clk 0:01:06]}  Qb7 {[%clk 0:02:28]} 19. Nb6 {[%clk 0:01:03]}  Ra7 {[%clk 0:02:16]} 20. e5 {[%clk 0:00:59]}  dxe5 {[%clk 0:01:57]} 21. fxe5 {[%clk 0:00:58]}  Nd5 {[%clk 0:01:52]} 22. Nxd7 {[%clk 0:00:43]}  Nxc7 {[%clk 0:01:30]} 23. Ndc5 {[%clk 0:00:42]}  Qd5 {[%clk 0:01:26]} 24. Qg4 {[%clk 0:00:37]}  O-O {[%clk 0:01:23]} 25. Qxb4 {[%clk 0:00:34]}  Qxe5 {[%clk 0:00:57]} 26. Qe4 {[%clk 0:00:18]}  Qxe4 {[%clk 0:00:47]} 27. dxe4 {[%clk 0:00:18]}  e5 {[%clk 0:00:40]} 28. Rhd1 {[%clk 0:00:18]}  Ne6 {[%clk 0:00:39]} 29. Nxe6 {[%clk 0:00:17]}  fxe6 {[%clk 0:00:40]} 30. Nc5 {[%clk 0:00:16]}  Rf6 {[%clk 0:00:36]} 31. Nd7 {[%clk 0:00:14]}  Rf7 {[%clk 0:00:28]} 32. Rc8+ {[%clk 0:00:13]}  Bf8 {[%clk 0:00:29]} 33. Nxe5 {[%clk 0:00:12]}  Rfc7 {[%clk 0:00:25]} 34. Rxc7 {[%clk 0:00:11]}  Rxc7 {[%clk 0:00:24]} 35. Rd8 {[%clk 0:00:11]}  g6 {[%clk 0:00:20]} 36. a3 {[%clk 0:00:09]}  Kg7 {[%clk 0:00:19]} 37. Rd7+ {[%clk 0:00:08]}  Rxd7 {[%clk 0:00:18]} 38. Nxd7 {[%clk 0:00:09]}  Bd6 {[%clk 0:00:18]} 39. e5 {[%clk 0:00:09]}  Bc7 {[%clk 0:00:16]} 40. b4 {[%clk 0:00:09]}  g5 {[%clk 0:00:15]} 41. a4 {[%clk 0:00:09]}  Kg6 {[%clk 0:00:16]} 42. b5 {[%clk 0:00:09]}  axb5 {[%clk 0:00:15]} 43. axb5 {[%clk 0:00:10]}  Kf5 {[%clk 0:00:16]} 44. b6 {[%clk 0:00:10]}  Bd8 {[%clk 0:00:14]} 45. b7 {[%clk 0:00:10]}  Bc7 {[%clk 0:00:15]} 46. Kc2 {[%clk 0:00:09]}  h5 {[%clk 0:00:14]} 47. Kd3 {[%clk 0:00:09]}  h4 {[%clk 0:00:14]} 48. h3 {[%clk 0:00:09]}  g4 {[%clk 0:00:14]} 49. hxg4+ {[%clk 0:00:10]}  Kxg4 {[%clk 0:00:15]} 50. Ke2 {[%clk 0:00:07]}  Kf4 {[%clk 0:00:14]} 51. Kf2 {[%clk 0:00:06]}  Ke4 {[%clk 0:00:14]} 52. Kg1 {[%clk 0:00:05]}  Kf4 {[%clk 0:00:14]} 53. Kh2 {[%clk 0:00:05]}  Kg4 {[%clk 0:00:14]} 54. b8=Q {[%clk 0:00:05]}  Bxb8 {[%clk 0:00:14]} 55. Nxb8 {[%clk 0:00:06]}  Kf4 {[%clk 0:00:14]} 56. Nd7 {[%clk 0:00:07]}  Kg4 {[%clk 0:00:13]} 57. Nf6+ {[%clk 0:00:07]}  Kf5 {[%clk 0:00:13]} 58. Nd7 {[%clk 0:00:07]}  Kg4 {[%clk 0:00:14]} 59. Kh1 {[%clk 0:00:07]}  Kg3 {[%clk 0:00:14]} 60. Kg1 {[%clk 0:00:07]}  h3 {[%clk 0:00:13]} 61. gxh3 {[%clk 0:00:08]}  Kxh3 {[%clk 0:00:14]} 62. Kf2 {[%clk 0:00:08]}  Kg4 {[%clk 0:00:15]} 63. Ke3 {[%clk 0:00:08]}  Kf5 {[%clk 0:00:16]} 64. Kd4 {[%clk 0:00:09]}  Kf4 {[%clk 0:00:16]} 65. Kc5 {[%clk 0:00:09]}  Kf5 {[%clk 0:00:17]} 66. Kd6 {[%clk 0:00:10]} 1-0


[Site "https://www.chess.com"]

[Event "Titled Tuesday Blitz April 26 Early 2022"]
[White "Costachi, Mihnea"]
[Black "Ciorgovean, Iustin"]
[WhiteFideId "1217518"]
[BlackFideId "1242911"]
[WhiteElo "2841"]
[BlackElo "2553"]
[Result "1-0"]
[Round "06"]
[TimeControl "180+1"]
[Date "2022.04.26"]
[WhiteClock "0:02:21"]
[BlackClock "0:01:35"]

1. Nf3 {[%clk 0:03:00]}  Nf6 {[%clk 0:02:58]} 2. b3 {[%clk 0:03:00]}  d5 {[%clk 0:02:55]} 3. Bb2 {[%clk 0:03:01]}  c5 {[%clk 0:02:56]} 4. e3 {[%clk 0:03:01]}  Nc6 {[%clk 0:02:55]} 5. Be2 {[%clk 0:03:01]}  g6 {[%clk 0:02:51]} 6. d4 {[%clk 0:03:01]}  Bg7 {[%clk 0:02:49]} 7. dxc5 {[%clk 0:03:01]}  Qa5+ {[%clk 0:02:49]} 8. Nbd2 {[%clk 0:02:59]}  O-O {[%clk 0:02:48]} 9. O-O {[%clk 0:02:57]}  Qxc5 {[%clk 0:02:47]} 10. c4 {[%clk 0:02:56]}  Rd8 {[%clk 0:02:46]} 11. cxd5 {[%clk 0:02:55]}  Qxd5 {[%clk 0:02:44]} 12. Nc4 {[%clk 0:02:53]}  Bf5 {[%clk 0:02:32]} 13. Qxd5 {[%clk 0:02:51]}  Nxd5 {[%clk 0:02:29]} 14. Bxg7 {[%clk 0:02:52]}  Kxg7 {[%clk 0:02:30]} 15. Rfc1 {[%clk 0:02:45]}  Ndb4 {[%clk 0:02:20]} 16. a3 {[%clk 0:02:45]}  Nd3 {[%clk 0:02:18]} 17. Rc3 {[%clk 0:02:37]}  b5 {[%clk 0:01:51]} 18. Ncd2 {[%clk 0:02:28]}  Nde5 {[%clk 0:01:48]} 19. Bxb5 {[%clk 0:02:21]}  Nxf3+ {[%clk 0:01:35]} 20. Nxf3 {[%clk 0:02:21]}  Be4 {[%clk 0:01:35]} 1-0


[Site "https://www.chess.com"]

[Event "Titled Tuesday Blitz April 26 Early 2022"]
[White "Cramling Bellon, Anna"]
[Black "Terzi, Alexei"]
[WhiteFideId "32009232"]
[BlackFideId "13505076"]
[WhiteElo "1905"]
[BlackElo "2031"]
[Result "1-0"]
[Round "06"]
[TimeControl "180+1"]
[Date "2022.04.26"]
[WhiteClock "0:00:04"]
[BlackClock "0:00:25"]

1. d4 {[%clk 0:03:00]}  Nf6 {[%clk 0:02:55]} 2. c4 {[%clk 0:03:00]}  c5 {[%clk 0:02:56]} 3. d5 {[%clk 0:03:00]}  b5 {[%clk 0:02:56]} 4. cxb5 {[%clk 0:03:01]}  a6 {[%clk 0:02:57]} 5. Nc3 {[%clk 0:03:02]}  g6 {[%clk 0:02:56]} 6. e4 {[%clk 0:03:02]}  d6 {[%clk 0:02:56]} 7. Bd2 {[%clk 0:02:52]}  Bg7 {[%clk 0:02:55]} 8. a4 {[%clk 0:02:52]}  O-O {[%clk 0:02:52]} 9. Nf3 {[%clk 0:02:52]}  Nbd7 {[%clk 0:02:45]} 10. Bd3 {[%clk 0:02:50]}  axb5 {[%clk 0:02:44]} 11. axb5 {[%clk 0:02:48]}  Rxa1 {[%clk 0:02:36]} 12. Qxa1 {[%clk 0:02:48]}  Nb6 {[%clk 0:02:33]} 13. O-O {[%clk 0:02:28]}  e6 {[%clk 0:02:33]} 14. dxe6 {[%clk 0:01:27]}  Bxe6 {[%clk 0:02:34]} 15. e5 {[%clk 0:01:24]}  Ng4 {[%clk 0:02:27]} 16. exd6 {[%clk 0:01:18]}  Qxd6 {[%clk 0:02:27]} 17. Ne4 {[%clk 0:01:13]}  Qxd3 {[%clk 0:02:24]} 18. Nxc5 {[%clk 0:01:09]}  Qxb5 {[%clk 0:02:20]} 19. Nxe6 {[%clk 0:00:50]}  fxe6 {[%clk 0:02:21]} 20. h3 {[%clk 0:00:43]}  Ne5 {[%clk 0:02:07]} 21. Ng5 {[%clk 0:00:30]}  Nec4 {[%clk 0:01:53]} 22. Nxe6 {[%clk 0:00:13]}  Nxd2 {[%clk 0:01:46]} 23. Rd1 {[%clk 0:00:09]}  Nb3 {[%clk 0:00:49]} 24. Qa7 {[%clk 0:00:06]}  Rf7 {[%clk 0:00:24]} 25. Rd8+ {[%clk 0:00:06]}  Bf8 {[%clk 0:00:25]} 26. Rxf8+ {[%clk 0:00:04]}  Rxf8 {[%clk 0:00:25]} 27. Qg7# {[%clk 0:00:04]} 1-0


[Site "https://www.chess.com"]

[Event "Titled Tuesday Blitz April 26 Early 2022"]
[White "Dixit, Nikhil"]
[Black "Onslow, Alfie"]
[WhiteFideId "5059534"]
[BlackFideId "436976"]
[WhiteElo "2223"]
[BlackElo "1884"]
[Result "0-1"]
[Round "06"]
[TimeControl "180+1"]
[Date "2022.04.26"]
[WhiteClock "0:00:10"]
[BlackClock "0:00:07"]

1. e4 {[%clk 0:03:00]}  c5 {[%clk 0:02:57]} 2. Nf3 {[%clk 0:02:59]}  Nc6 {[%clk 0:02:57]} 3. Bb5 {[%clk 0:02:58]}  g6 {[%clk 0:02:57]} 4. O-O {[%clk 0:02:56]}  Bg7 {[%clk 0:02:57]} 5. Re1 {[%clk 0:02:56]}  e5 {[%clk 0:02:55]} 6. Nc3 {[%clk 0:02:45]}  Nge7 {[%clk 0:02:55]} 7. Nd5 {[%clk 0:02:44]}  O-O {[%clk 0:02:43]} 8. a4 {[%clk 0:02:36]}  d6 {[%clk 0:02:43]} 9. Nxe7+ {[%clk 0:02:30]}  Qxe7 {[%clk 0:02:41]} 10. Bc4 {[%clk 0:02:29]}  Be6 {[%clk 0:02:31]} 11. d3 {[%clk 0:02:27]}  b6 {[%clk 0:02:20]} 12. Ng5 {[%clk 0:02:11]}  Bxc4 {[%clk 0:02:12]} 13. dxc4 {[%clk 0:02:11]}  Nd4 {[%clk 0:02:13]} 14. c3 {[%clk 0:02:08]}  Ne6 {[%clk 0:02:13]} 15. Nxe6 {[%clk 0:02:01]}  Qxe6 {[%clk 0:02:04]} 16. Qd5 {[%clk 0:01:57]}  Qxd5 {[%clk 0:02:04]} 17. cxd5 {[%clk 0:01:58]}  f5 {[%clk 0:01:55]} 18. f3 {[%clk 0:01:58]}  Rf7 {[%clk 0:01:48]} 19. Bd2 {[%clk 0:01:54]}  Raf8 {[%clk 0:01:33]} 20. c4 {[%clk 0:01:42]}  fxe4 {[%clk 0:01:29]} 21. Rxe4 {[%clk 0:01:43]}  h5 {[%clk 0:01:14]} 22. Kf1 {[%clk 0:01:40]}  Kh7 {[%clk 0:01:13]} 23. Ke2 {[%clk 0:01:39]}  Bh6 {[%clk 0:01:08]} 24. Bxh6 {[%clk 0:01:28]}  Kxh6 {[%clk 0:01:09]} 25. h4 {[%clk 0:01:29]}  Rf4 {[%clk 0:01:04]} 26. Rf1 {[%clk 0:01:22]}  g5 {[%clk 0:00:54]} 27. g3 {[%clk 0:01:09]}  R4f5 {[%clk 0:00:35]} 28. hxg5+ {[%clk 0:00:39]}  Rxg5 {[%clk 0:00:31]} 29. Rg1 {[%clk 0:00:39]}  Kg6 {[%clk 0:00:19]} 30. b3 {[%clk 0:00:37]}  Rgf5 {[%clk 0:00:18]} 31. Rf1 {[%clk 0:00:33]}  Rg5 {[%clk 0:00:09]} 32. Rg1 {[%clk 0:00:32]}  Kf5 {[%clk 0:00:07]} 33. Rh4 {[%clk 0:00:26]}  Rfg8 {[%clk 0:00:06]} 34. Rgh1 {[%clk 0:00:23]}  Rxg3 {[%clk 0:00:05]} 35. Rxh5+ {[%clk 0:00:23]}  R8g5 {[%clk 0:00:05]} 36. Rh8 {[%clk 0:00:20]}  Rg2+ {[%clk 0:00:05]} 37. Ke3 {[%clk 0:00:21]}  Rb2 {[%clk 0:00:04]} 38. R1h6 {[%clk 0:00:19]}  Rxb3+ {[%clk 0:00:04]} 39. Kf2 {[%clk 0:00:20]}  Kf4 {[%clk 0:00:04]} 40. Rh4+ {[%clk 0:00:15]}  Kf5 {[%clk 0:00:04]} 41. R4h6 {[%clk 0:00:14]}  Rb2+ {[%clk 0:00:04]} 42. Ke3 {[%clk 0:00:14]}  Rb3+ {[%clk 0:00:04]} 43. Ke2 {[%clk 0:00:15]}  Rg2+ {[%clk 0:00:04]} 44. Kf1 {[%clk 0:00:15]}  Ra2 {[%clk 0:00:05]} 45. Rh5+ {[%clk 0:00:08]}  Kf4 {[%clk 0:00:05]} 46. Rh4+ {[%clk 0:00:08]}  Ke3 {[%clk 0:00:04]} 47. Re4+ {[%clk 0:00:07]}  Kxf3 {[%clk 0:00:04]} 48. Rh3+ {[%clk 0:00:07]}  Kxe4 {[%clk 0:00:04]} 49. Rxb3 {[%clk 0:00:08]}  Rxa4 {[%clk 0:00:04]} 50. Rh3 {[%clk 0:00:08]}  Rxc4 {[%clk 0:00:03]} 51. Rh4+ {[%clk 0:00:09]}  Kxd5 {[%clk 0:00:04]} 52. Rh6 {[%clk 0:00:10]}  a5 {[%clk 0:00:04]} 53. Ke2 {[%clk 0:00:10]}  a4 {[%clk 0:00:04]} 54. Kd3 {[%clk 0:00:11]}  Rd4+ {[%clk 0:00:05]} 55. Kc3 {[%clk 0:00:11]}  b5 {[%clk 0:00:05]} 56. Rh8 {[%clk 0:00:11]}  b4+ {[%clk 0:00:06]} 57. Kb2 {[%clk 0:00:10]}  Rg4 {[%clk 0:00:07]} 0-1


[Site "https://www.chess.com"]

[Event "Titled Tuesday Blitz April 26 Early 2022"]
[White "Esipenko, Andrey"]
[Black "Donchenko, Alexander"]
[WhiteFideId "24175439"]
[BlackFideId "24603295"]
[WhiteElo "2617"]
[BlackElo "2539"]
[Result "1-0"]
[Round "06"]
[TimeControl "180+1"]
[Date "2022.04.26"]
[WhiteClock "0:02:07"]
[BlackClock "0:02:11"]

1. d4 {[%clk 0:03:00]}  Nf6 {[%clk 0:02:59]} 2. c4 {[%clk 0:03:01]}  e6 {[%clk 0:03:00]} 3. Nc3 {[%clk 0:03:01]}  Bb4 {[%clk 0:03:00]} 4. e3 {[%clk 0:03:02]}  O-O {[%clk 0:02:59]} 5. a3 {[%clk 0:03:03]}  Bxc3+ {[%clk 0:02:58]} 6. bxc3 {[%clk 0:03:03]}  d6 {[%clk 0:02:56]} 7. Bd3 {[%clk 0:03:02]}  e5 {[%clk 0:02:57]} 8. e4 {[%clk 0:03:01]}  Nc6 {[%clk 0:02:56]} 9. Ne2 {[%clk 0:03:01]}  b6 {[%clk 0:02:54]} 10. O-O {[%clk 0:02:57]}  Re8 {[%clk 0:02:51]} 11. f3 {[%clk 0:02:45]}  Ba6 {[%clk 0:02:50]} 12. Bg5 {[%clk 0:02:45]}  h6 {[%clk 0:02:49]} 13. Bh4 {[%clk 0:02:44]}  Na5 {[%clk 0:02:45]} 14. f4 {[%clk 0:02:10]}  exf4 {[%clk 0:02:42]} 15. Nxf4 {[%clk 0:02:08]}  g5 {[%clk 0:02:42]} 16. Nh5 {[%clk 0:02:08]}  Nxh5 {[%clk 0:02:13]} 17. Qxh5 {[%clk 0:02:08]}  gxh4 {[%clk 0:02:11]} 18. Qxf7+ {[%clk 0:02:06]}  Kh8 {[%clk 0:02:11]} 19. Rf6 {[%clk 0:02:07]} 1-0


[Site "https://www.chess.com"]

[Event "Titled Tuesday Blitz April 26 Early 2022"]
[White "Eynullayev, Atilla"]
[Black "Leiva, Gianmarco"]
[WhiteFideId "13413570"]
[BlackFideId "3804399"]
[WhiteElo "2491"]
[BlackElo "2729"]
[Result "0-1"]
[Round "06"]
[TimeControl "180+1"]
[Date "2022.04.26"]
[WhiteClock "0:00:09"]
[BlackClock "0:00:07"]

1. e4 {[%clk 0:03:00]}  c6 {[%clk 0:02:58]} 2. d4 {[%clk 0:03:00]}  d5 {[%clk 0:02:58]} 3. e5 {[%clk 0:03:00]}  c5 {[%clk 0:02:56]} 4. dxc5 {[%clk 0:03:01]}  e6 {[%clk 0:02:57]} 5. Nf3 {[%clk 0:03:01]}  Bxc5 {[%clk 0:02:53]} 6. a3 {[%clk 0:03:02]}  Be7 {[%clk 0:02:49]} 7. Bd3 {[%clk 0:03:00]}  Nc6 {[%clk 0:02:39]} 8. O-O {[%clk 0:02:49]}  f6 {[%clk 0:02:36]} 9. b4 {[%clk 0:02:06]}  fxe5 {[%clk 0:02:15]} 10. b5 {[%clk 0:02:05]}  e4 {[%clk 0:02:16]} 11. bxc6 {[%clk 0:01:55]}  exf3 {[%clk 0:02:02]} 12. cxb7 {[%clk 0:01:38]}  Bxb7 {[%clk 0:02:02]} 13. Bb5+ {[%clk 0:01:39]}  Kf7 {[%clk 0:02:02]} 14. Qxf3+ {[%clk 0:01:39]}  Bf6 {[%clk 0:01:50]} 15. Bb2 {[%clk 0:01:04]}  Qb6 {[%clk 0:01:41]} 16. Bxf6 {[%clk 0:01:03]}  Nxf6 {[%clk 0:01:41]} 17. Bd3 {[%clk 0:01:02]}  e5 {[%clk 0:01:34]} 18. Nc3 {[%clk 0:00:27]}  e4 {[%clk 0:01:04]} 19. Nxe4 {[%clk 0:00:27]}  dxe4 {[%clk 0:01:04]} 20. Bc4+ {[%clk 0:00:28]}  Kf8 {[%clk 0:01:03]} 21. Qf5 {[%clk 0:00:28]}  g6 {[%clk 0:00:29]} 22. Qg5 {[%clk 0:00:23]}  Kg7 {[%clk 0:00:25]} 23. Rab1 {[%clk 0:00:23]}  Qc6 {[%clk 0:00:26]} 24. Bb5 {[%clk 0:00:22]}  Qc7 {[%clk 0:00:18]} 25. Rfd1 {[%clk 0:00:19]}  Rad8 {[%clk 0:00:17]} 26. Be2 {[%clk 0:00:17]}  Rxd1+ {[%clk 0:00:17]} 27. Rxd1 {[%clk 0:00:17]}  Rd8 {[%clk 0:00:17]} 28. Rb1 {[%clk 0:00:18]}  Rd5 {[%clk 0:00:17]} 29. Qe3 {[%clk 0:00:17]}  Rd6 {[%clk 0:00:11]} 30. Qxa7 {[%clk 0:00:16]}  Rd7 {[%clk 0:00:06]} 31. h3 {[%clk 0:00:17]}  Re7 {[%clk 0:00:06]} 32. Qd4 {[%clk 0:00:17]}  e3 {[%clk 0:00:05]} 33. f3 {[%clk 0:00:16]}  Qxc2 {[%clk 0:00:05]} 34. Rb2 {[%clk 0:00:12]}  Qc1+ {[%clk 0:00:05]} 35. Kh2 {[%clk 0:00:12]}  Qc7+ {[%clk 0:00:05]} 36. g3 {[%clk 0:00:13]}  Bd5 {[%clk 0:00:04]} 37. Kg2 {[%clk 0:00:09]}  h5 {[%clk 0:00:04]} 38. g4 {[%clk 0:00:09]}  h4 {[%clk 0:00:04]} 39. Bd3 {[%clk 0:00:02]}  Qg3+ {[%clk 0:00:04]} 40. Kf1 {[%clk 0:00:02]}  Qxf3+ {[%clk 0:00:04]} 41. Ke1 {[%clk 0:00:03]}  e2 {[%clk 0:00:03]} 42. Bxe2 {[%clk 0:00:03]}  Qh1+ {[%clk 0:00:03]} 43. Kd2 {[%clk 0:00:03]}  Qe4 {[%clk 0:00:04]} 44. Qxe4 {[%clk 0:00:03]}  Nxe4+ {[%clk 0:00:04]} 45. Ke1 {[%clk 0:00:03]}  Ng5 {[%clk 0:00:05]} 46. Kd1 {[%clk 0:00:03]}  Nxh3 {[%clk 0:00:05]} 47. Bd3 {[%clk 0:00:03]}  Nf4 {[%clk 0:00:05]} 48. Bb1 {[%clk 0:00:03]}  h3 {[%clk 0:00:05]} 49. Rh2 {[%clk 0:00:04]}  Bg2 {[%clk 0:00:06]} 50. g5 {[%clk 0:00:05]}  Re5 {[%clk 0:00:06]} 51. Bc2 {[%clk 0:00:05]}  Rxg5 {[%clk 0:00:06]} 52. Ke1 {[%clk 0:00:06]}  Kh6 {[%clk 0:00:07]} 53. Kf2 {[%clk 0:00:07]}  Kh5 {[%clk 0:00:06]} 54. Bb3 {[%clk 0:00:07]}  Kh4 {[%clk 0:00:06]} 55. Bd1 {[%clk 0:00:08]}  Rd5 {[%clk 0:00:06]} 56. Bc2 {[%clk 0:00:08]}  Rd2+ {[%clk 0:00:07]} 57. Ke3 {[%clk 0:00:09]}  Rxc2 {[%clk 0:00:06]} 58. Kxf4 {[%clk 0:00:10]}  Ra2 {[%clk 0:00:06]} 59. Ke3 {[%clk 0:00:09]}  g5 {[%clk 0:00:06]} 60. a4 {[%clk 0:00:08]}  g4 {[%clk 0:00:07]} 61. Kf4 {[%clk 0:00:09]}  g3 {[%clk 0:00:07]} 0-1


[Site "https://www.chess.com"]

[Event "Titled Tuesday Blitz April 26 Early 2022"]
[White "Gatterer, Florian"]
[Black "Fernandez Hernandez, Gerardo"]
[WhiteFideId "811688"]
[BlackFideId "2207400"]
[WhiteElo "2218"]
[BlackElo "2187"]
[Result "1-0"]
[Round "06"]
[TimeControl "180+1"]
[Date "2022.04.26"]
[WhiteClock "0:00:06"]
[BlackClock "0:00:01"]

1. f4 {[%clk 0:03:00]}  d5 {[%clk 0:02:58]} 2. Nf3 {[%clk 0:02:59]}  Nf6 {[%clk 0:02:59]} 3. g3 {[%clk 0:03:00]}  g6 {[%clk 0:02:57]} 4. Bg2 {[%clk 0:03:00]}  Bg7 {[%clk 0:02:57]} 5. O-O {[%clk 0:02:59]}  O-O {[%clk 0:02:58]} 6. d3 {[%clk 0:03:00]}  c5 {[%clk 0:02:58]} 7. Ne5 {[%clk 0:02:59]}  Nfd7 {[%clk 0:02:50]} 8. Nxd7 {[%clk 0:02:56]}  Qxd7 {[%clk 0:02:47]} 9. e4 {[%clk 0:02:55]}  dxe4 {[%clk 0:02:45]} 10. dxe4 {[%clk 0:02:55]}  Qxd1 {[%clk 0:02:42]} 11. Rxd1 {[%clk 0:02:54]}  Bg4 {[%clk 0:02:41]} 12. Re1 {[%clk 0:02:45]}  Nc6 {[%clk 0:02:34]} 13. c3 {[%clk 0:02:45]}  Rad8 {[%clk 0:02:15]} 14. Be3 {[%clk 0:02:43]}  b6 {[%clk 0:02:07]} 15. Na3 {[%clk 0:02:41]}  e5 {[%clk 0:02:03]} 16. h3 {[%clk 0:02:32]}  exf4 {[%clk 0:01:54]} 17. gxf4 {[%clk 0:02:28]}  Bh5 {[%clk 0:01:53]} 18. Kf2 {[%clk 0:02:22]}  Bf6 {[%clk 0:01:42]} 19. Kg3 {[%clk 0:02:03]}  Bg7 {[%clk 0:01:04]} 20. Bf3 {[%clk 0:01:49]}  Bxf3 {[%clk 0:00:59]} 21. Kxf3 {[%clk 0:01:49]}  f5 {[%clk 0:00:58]} 22. e5 {[%clk 0:01:44]}  g5 {[%clk 0:00:55]} 23. Rad1 {[%clk 0:01:43]}  Rxd1 {[%clk 0:00:44]} 24. Rxd1 {[%clk 0:01:43]}  gxf4 {[%clk 0:00:45]} 25. Bxf4 {[%clk 0:01:26]}  Nxe5+ {[%clk 0:00:45]} 26. Bxe5 {[%clk 0:01:26]}  Bxe5 {[%clk 0:00:46]} 27. Rd7 {[%clk 0:01:25]}  Rf7 {[%clk 0:00:46]} 28. Rd8+ {[%clk 0:01:22]}  Rf8 {[%clk 0:00:45]} 29. Rd7 {[%clk 0:01:22]}  Rf7 {[%clk 0:00:46]} 30. Rd8+ {[%clk 0:01:21]}  Kg7 {[%clk 0:00:47]} 31. Nc4 {[%clk 0:01:21]}  Bc7 {[%clk 0:00:42]} 32. Ra8 {[%clk 0:01:09]}  b5 {[%clk 0:00:41]} 33. Ne3 {[%clk 0:01:05]}  f4 {[%clk 0:00:36]} 34. Nd5 {[%clk 0:00:54]}  Bb6 {[%clk 0:00:34]} 35. Rb8 {[%clk 0:00:48]}  b4 {[%clk 0:00:16]} 36. cxb4 {[%clk 0:00:43]}  cxb4 {[%clk 0:00:15]} 37. Nxb6 {[%clk 0:00:43]}  axb6 {[%clk 0:00:16]} 38. Rxb6 {[%clk 0:00:43]}  Ra7 {[%clk 0:00:15]} 39. Rxb4 {[%clk 0:00:43]}  Rxa2 {[%clk 0:00:15]} 40. Kxf4 {[%clk 0:00:43]}  Ra1 {[%clk 0:00:15]} 41. Re4 {[%clk 0:00:38]}  Rh1 {[%clk 0:00:14]} 42. Re3 {[%clk 0:00:35]}  Kf6 {[%clk 0:00:11]} 43. Ke4 {[%clk 0:00:33]}  Ke6 {[%clk 0:00:11]} 44. Kd4+ {[%clk 0:00:33]}  Kd6 {[%clk 0:00:11]} 45. Rf3 {[%clk 0:00:31]}  Rb1 {[%clk 0:00:09]} 46. b3 {[%clk 0:00:29]}  Rh1 {[%clk 0:00:09]} 47. Kc4 {[%clk 0:00:27]}  Rc1+ {[%clk 0:00:05]} 48. Kb5 {[%clk 0:00:26]}  Rh1 {[%clk 0:00:06]} 49. b4 {[%clk 0:00:26]}  Kc7 {[%clk 0:00:06]} 50. Rc3+ {[%clk 0:00:23]}  Kb7 {[%clk 0:00:05]} 51. Kc5 {[%clk 0:00:23]}  h5 {[%clk 0:00:02]} 52. Re3 {[%clk 0:00:21]}  Rg1 {[%clk 0:00:02]} 53. Re5 {[%clk 0:00:14]}  h4 {[%clk 0:00:02]} 54. Re4 {[%clk 0:00:12]}  Rg5+ {[%clk 0:00:02]} 55. Kc4 {[%clk 0:00:12]}  Rh5 {[%clk 0:00:02]} 56. Rg4 {[%clk 0:00:12]}  Rh6 {[%clk 0:00:01]} 57. Rg5 {[%clk 0:00:11]}  Kb6 {[%clk 0:00:02]} 58. Rg4 {[%clk 0:00:11]}  Kc6 {[%clk 0:00:02]} 59. Kd4 {[%clk 0:00:09]}  Kb6 {[%clk 0:00:03]} 60. Ke4 {[%clk 0:00:09]}  Kb5 {[%clk 0:00:04]} 61. Kf5 {[%clk 0:00:10]}  Kc6 {[%clk 0:00:03]} 62. Kg5 {[%clk 0:00:09]}  Rh8 {[%clk 0:00:04]} 63. Rxh4 {[%clk 0:00:10]}  Rg8+ {[%clk 0:00:04]} 64. Kf4 {[%clk 0:00:09]}  Kb5 {[%clk 0:00:05]} 65. Rg4 {[%clk 0:00:10]}  Rf8+ {[%clk 0:00:05]} 66. Kg3 {[%clk 0:00:10]}  Rh8 {[%clk 0:00:04]} 67. h4 {[%clk 0:00:10]}  Rh7 {[%clk 0:00:04]} 68. Rf4 {[%clk 0:00:10]}  Rh5 {[%clk 0:00:04]} 69. Kg4 {[%clk 0:00:10]}  Rh6 {[%clk 0:00:05]} 70. h5 {[%clk 0:00:10]}  Rh8 {[%clk 0:00:05]} 71. Kh4 {[%clk 0:00:10]}  Rg8 {[%clk 0:00:06]} 72. Rg4 {[%clk 0:00:10]}  Rh8 {[%clk 0:00:03]} 73. Rg6 {[%clk 0:00:10]}  Kxb4 {[%clk 0:00:02]} 74. Kg5 {[%clk 0:00:10]}  Kc5 {[%clk 0:00:02]} 75. h6 {[%clk 0:00:10]}  Kd5 {[%clk 0:00:02]} 76. Kf6 {[%clk 0:00:10]}  Rf8+ {[%clk 0:00:02]} 77. Kg7 {[%clk 0:00:10]}  Rf1 {[%clk 0:00:01]} 78. Rg2 {[%clk 0:00:08]}  Ra1 {[%clk 0:00:02]} 79. h7 {[%clk 0:00:08]}  Ra7+ {[%clk 0:00:01]} 80. Kh6 {[%clk 0:00:07]}  Ra6+ {[%clk 0:00:01]} 81. Rg6 {[%clk 0:00:07]}  Ra8 {[%clk 0:00:02]} 82. Rg8 {[%clk 0:00:06]}  Ra6+ {[%clk 0:00:02]} 83. Kg5 {[%clk 0:00:06]}  Rh6 {[%clk 0:00:01]} 84. Kxh6 {[%clk 0:00:06]} 1-0


[Site "https://www.chess.com"]

[Event "Titled Tuesday Blitz April 26 Early 2022"]
[White "Hartikainen, Jarmo"]
[Black "Buscar, Michael"]
[WhiteFideId "503134"]
[BlackFideId "2603616"]
[WhiteElo "2115"]
[BlackElo "2010"]
[Result "0-1"]
[Round "06"]
[TimeControl "180+1"]
[Date "2022.04.26"]
[WhiteClock "0:00:25"]
[BlackClock "0:01:00"]

1. e4 {[%clk 0:03:00]}  c6 {[%clk 0:02:57]} 2. d4 {[%clk 0:03:00]}  d6 {[%clk 0:02:57]} 3. Nf3 {[%clk 0:02:58]}  Bg4 {[%clk 0:02:55]} 4. Bd3 {[%clk 0:02:57]}  Nd7 {[%clk 0:02:53]} 5. Be3 {[%clk 0:02:55]}  e5 {[%clk 0:02:52]} 6. c3 {[%clk 0:02:54]}  Ngf6 {[%clk 0:02:51]} 7. Nbd2 {[%clk 0:02:52]}  Be7 {[%clk 0:02:51]} 8. Qc2 {[%clk 0:02:48]}  Qc7 {[%clk 0:02:51]} 9. h3 {[%clk 0:02:46]}  Bh5 {[%clk 0:02:50]} 10. g4 {[%clk 0:02:46]}  Bg6 {[%clk 0:02:50]} 11. a4 {[%clk 0:02:39]}  d5 {[%clk 0:02:36]} 12. a5 {[%clk 0:02:24]}  exd4 {[%clk 0:02:25]} 13. cxd4 {[%clk 0:02:08]}  dxe4 {[%clk 0:02:24]} 14. Nxe4 {[%clk 0:02:07]}  Nxe4 {[%clk 0:02:16]} 15. Bxe4 {[%clk 0:02:08]}  Bb4+ {[%clk 0:02:16]} 16. Bd2 {[%clk 0:02:06]}  Bxd2+ {[%clk 0:02:11]} 17. Nxd2 {[%clk 0:02:05]}  O-O {[%clk 0:02:02]} 18. Qc3 {[%clk 0:01:51]}  Rfe8 {[%clk 0:01:59]} 19. Qf3 {[%clk 0:01:37]}  Nf6 {[%clk 0:01:57]} 20. O-O {[%clk 0:01:21]}  Nxe4 {[%clk 0:01:54]} 21. Nc4 {[%clk 0:01:20]}  Ng5 {[%clk 0:01:48]} 22. Qg2 {[%clk 0:01:15]}  Be4 {[%clk 0:01:45]} 23. f3 {[%clk 0:01:15]}  Bd3 {[%clk 0:01:46]} 24. Ne5 {[%clk 0:01:13]}  Bxf1 {[%clk 0:01:41]} 25. Qxf1 {[%clk 0:01:11]}  Ne6 {[%clk 0:01:35]} 26. Qc4 {[%clk 0:01:06]}  Nxd4 {[%clk 0:01:31]} 27. f4 {[%clk 0:01:00]}  Ne6 {[%clk 0:01:25]} 28. Rf1 {[%clk 0:00:56]}  Rad8 {[%clk 0:01:22]} 29. b4 {[%clk 0:00:34]}  Rd4 {[%clk 0:01:05]} 30. Qc3 {[%clk 0:00:25]}  Rxf4 {[%clk 0:01:00]} 0-1


[Site "https://www.chess.com"]